[Event "*** Titled Tuesday Blitz"]
[Site "Chess.com"]
[Date "2020.01.07"]
[Round "2"]
[White "Kirill_Klukin"]
[Black "davigator"]
[Result "1-0"]
[WhiteElo "2668"]
[BlackElo "2330"]
[TimeControl "180+2"]
[EndTime "13:24:23 PST"]
[Termination "Kirill_Klukin won by checkmate"]

1. Nf3 {[%clk 0:02:57.7]} 1... d5 {[%clk 0:03:00.2]} 2. d4 {[%clk 0:02:57.7]}
2... c6 {[%clk 0:03:00.1]} 3. c4 {[%clk 0:02:58.8]} 3... Nf6 {[%clk 0:03:00.5]}
4. Nbd2 {[%clk 0:03:00.1]} 4... g6 {[%clk 0:02:59.6]} 5. e3 {[%clk 0:03:00.7]}
5... Bg7 {[%clk 0:03:00.6]} 6. Bd3 {[%clk 0:03:01.7]} 6... O-O {[%clk
0:03:01.6]} 7. O-O {[%clk 0:03:02.8]} 7... a6 {[%clk 0:03:02.2]} 8. Qe2 {[%clk
0:03:03.9]} 8... Bf5 {[%clk 0:02:58.6]} 9. Bxf5 {[%clk 0:03:03.1]} 9... gxf5
{[%clk 0:02:59.3]} 10. b3 {[%clk 0:03:05]} 10... e6 {[%clk 0:02:59.9]} 11. Bb2
{[%clk 0:03:06.4]} 11... Nbd7 {[%clk 0:02:59.8]} 12. Rac1 {[%clk 0:03:07.9]}
12... Re8 {[%clk 0:03:00.3]} 13. h3 {[%clk 0:03:02.9]} 13... Ne4 {[%clk
0:03:00.8]} 14. Rfd1 {[%clk 0:02:58.7]} 14... a5 {[%clk 0:03:00.7]} 15. a3
{[%clk 0:02:58.9]} 15... Kh8 {[%clk 0:02:56.7]} 16. Ne1 {[%clk 0:02:59.6]} 16...
Rg8 {[%clk 0:02:56]} 17. f3 {[%clk 0:02:57.5]} 17... Nd6 {[%clk 0:02:56.3]} 18.
Nd3 {[%clk 0:02:58]} 18... Qh4 {[%clk 0:02:51.8]} 19. Qf2 {[%clk 0:02:58.1]}
19... Qh5 {[%clk 0:02:50.1]} 20. cxd5 {[%clk 0:02:57.2]} 20... cxd5 {[%clk
0:02:50.1]} 21. Rc7 {[%clk 0:02:58.2]} 21... Rgd8 {[%clk 0:02:49.1]} 22. Rdc1
{[%clk 0:02:58.1]} 22... Bh6 {[%clk 0:02:46.6]} 23. a4 {[%clk 0:02:56.6]} 23...
b6 {[%clk 0:02:43.5]} 24. Ba3 {[%clk 0:02:41.9]} 24... Ne8 {[%clk 0:02:43]} 25.
R7c6 {[%clk 0:02:42.6]} 25... Qg5 {[%clk 0:02:33.9]} 26. Nf1 {[%clk 0:02:43.6]}
26... Qg8 {[%clk 0:02:31]} 27. Be7 {[%clk 0:02:40.8]} 27... Rdb8 {[%clk
0:02:30.9]} 28. Qh4 {[%clk 0:02:42]} 28... Bf8 {[%clk 0:02:29.8]} 29. Nf4 {[%clk
0:02:36.1]} 29... Qg7 {[%clk 0:02:16.1]} 30. Kh2 {[%clk 0:02:25.2]} 30... Ndf6
{[%clk 0:02:14.3]} 31. Bxf8 {[%clk 0:02:16.1]} 31... Qxf8 {[%clk 0:02:14.6]} 32.
Ng3 {[%clk 0:02:17.2]} 32... Qg7 {[%clk 0:02:03.5]} 33. Ngh5 {[%clk 0:02:06.4]}
33... Nxh5 {[%clk 0:02:03.9]} 34. Nxh5 {[%clk 0:02:08.3]} 34... Qg6 {[%clk
0:02:05.6]} 35. Nf4 {[%clk 0:02:09.3]} 35... Qf6 {[%clk 0:02:05.6]} 36. Qg3
{[%clk 0:02:07.3]} 36... Qg7 {[%clk 0:02:04.5]} 37. Qxg7+ {[%clk 0:01:51.2]}
37... Kxg7 {[%clk 0:02:04.4]} 38. Nd3 {[%clk 0:01:53.1]} 38... b5 {[%clk
0:02:04.6]} 39. Ne5 {[%clk 0:01:31.7]} 39... bxa4 {[%clk 0:02:02.6]} 40. bxa4
{[%clk 0:01:33.6]} 40... Kf8 {[%clk 0:01:52.2]} 41. R1c5 {[%clk 0:01:30.9]}
41... Kg7 {[%clk 0:01:51.5]} 42. Kg3 {[%clk 0:01:26.3]} 42... Rb4 {[%clk
0:01:51.7]} 43. Rb5 {[%clk 0:01:07.5]} 43... Rxa4 {[%clk 0:01:50.5]} 44. Rb7
{[%clk 0:01:08.2]} 44... Rb4 {[%clk 0:01:49.9]} 45. Rxf7+ {[%clk 0:01:08.7]}
45... Kg8 {[%clk 0:01:49.5]} 46. Rxe6 {[%clk 0:01:07.3]} 46... a4 {[%clk
0:01:47.4]} 47. Ree7 {[%clk 0:01:00.8]} 47... Rb6 {[%clk 0:01:43.2]} 48. Nd7
{[%clk 0:01:00.1]} 48... Rg6+ {[%clk 0:01:39.9]} 49. Kf4 {[%clk 0:01:01.4]}
49... a3 {[%clk 0:01:40.3]} 50. Rf8# {[%clk 0:01:02.3]} 1-0

[Event "*** Titled Tuesday Blitz"]
[Site "Chess.com"]
[Date "2020.01.07"]
[Round "2"]
[White "Megagigahiper3345"]
[Black "Irishchessman16"]
[Result "0-1"]
[WhiteElo "2448"]
[BlackElo "2205"]
[TimeControl "180+2"]
[EndTime "13:24:30 PST"]
[Termination "Irishchessman16 won by checkmate"]

1. d4 {[%clk 0:02:59.4]} 1... Nf6 {[%clk 0:02:59.9]} 2. c4 {[%clk 0:02:59.9]}
2... e6 {[%clk 0:03:01.1]} 3. Nf3 {[%clk 0:03:00.3]} 3... b6 {[%clk 0:03:01.9]}
4. g3 {[%clk 0:03:01.2]} 4... Ba6 {[%clk 0:03:03]} 5. Qc2 {[%clk 0:02:59.8]}
5... c5 {[%clk 0:03:02.5]} 6. d5 {[%clk 0:02:40.5]} 6... exd5 {[%clk 0:03:01.4]}
7. cxd5 {[%clk 0:02:42.4]} 7... Bb7 {[%clk 0:03:02.1]} 8. e4 {[%clk 0:02:37.7]}
8... Qe7 {[%clk 0:03:01.3]} 9. Bd3 {[%clk 0:02:19.2]} 9... Nxd5 {[%clk
0:03:01.3]} 10. a3 {[%clk 0:02:18.2]} 10... Nc7 {[%clk 0:02:53.6]} 11. O-O
{[%clk 0:02:15.4]} 11... Nc6 {[%clk 0:02:54.1]} 12. Bf4 {[%clk 0:02:05.6]} 12...
Ne6 {[%clk 0:02:54.2]} 13. Be3 {[%clk 0:02:00.4]} 13... g6 {[%clk 0:02:52.5]}
14. Nc3 {[%clk 0:02:00.8]} 14... Bg7 {[%clk 0:02:51.4]} 15. Nd5 {[%clk
0:02:01.1]} 15... Qd8 {[%clk 0:02:52.4]} 16. h4 {[%clk 0:01:58.2]} 16... O-O
{[%clk 0:02:52.7]} 17. h5 {[%clk 0:01:59.4]} 17... Ncd4 {[%clk 0:02:46.6]} 18.
Nxd4 {[%clk 0:01:18.7]} 18... Nxd4 {[%clk 0:02:46.8]} 19. Bxd4 {[%clk
0:01:18.9]} 19... Bxd4 {[%clk 0:02:47]} 20. hxg6 {[%clk 0:01:20.4]} 20... hxg6
{[%clk 0:02:41.6]} 21. Kg2 {[%clk 0:01:21.2]} 21... Kg7 {[%clk 0:02:41.2]} 22.
a4 {[%clk 0:01:17.4]} 22... f5 {[%clk 0:02:37.5]} 23. Bc4 {[%clk 0:01:11.1]}
23... fxe4 {[%clk 0:02:23.6]} 24. Qxe4 {[%clk 0:01:06]} 24... Qe8 {[%clk
0:02:21.1]} 25. Rae1 {[%clk 0:01:04.3]} 25... Qxe4+ {[%clk 0:02:17.5]} 26. Rxe4
{[%clk 0:01:06.2]} 26... Rae8 {[%clk 0:02:18.4]} 27. f3 {[%clk 0:00:59]} 27...
Rxe4 {[%clk 0:02:13.6]} 28. fxe4 {[%clk 0:01:00.9]} 28... Rxf1 {[%clk
0:02:15.1]} 29. Kxf1 {[%clk 0:01:02.2]} 29... Bxb2 {[%clk 0:02:16.3]} 30. Ke2
{[%clk 0:00:59.6]} 30... Be5 {[%clk 0:02:14.8]} 31. Kf3 {[%clk 0:01:00.4]} 31...
Bc6 {[%clk 0:02:15.4]} 32. Bb5 {[%clk 0:01:01.1]} 32... Kf7 {[%clk 0:02:12.2]}
33. Bc4 {[%clk 0:01:01.3]} 33... Kf8 {[%clk 0:02:10.1]} 34. g4 {[%clk
0:01:02.4]} 34... Bxa4 {[%clk 0:02:09.3]} 35. g5 {[%clk 0:01:02.2]} 35... Bc6
{[%clk 0:02:08]} 36. Ke3 {[%clk 0:01:02.8]} 36... b5 {[%clk 0:02:08.3]} 37. Be2
{[%clk 0:01:03.9]} 37... c4 {[%clk 0:02:05]} 38. Nb4 {[%clk 0:01:02.7]} 38... a5
{[%clk 0:01:59.6]} 39. Nxc6 {[%clk 0:00:52.1]} 39... dxc6 {[%clk 0:02:01.5]} 40.
Bg4 {[%clk 0:00:51.7]} 40... Ke7 {[%clk 0:02:01.9]} 41. Bc8 {[%clk 0:00:50.9]}
41... a4 {[%clk 0:02:02]} 42. Kd2 {[%clk 0:00:41.2]} 42... a3 {[%clk 0:02:02.3]}
43. Kc2 {[%clk 0:00:42.4]} 43... b4 {[%clk 0:02:02.1]} 44. Bb7 {[%clk
0:00:44.3]} 44... b3+ {[%clk 0:02:01.1]} 45. Kd2 {[%clk 0:00:45.8]} 45... a2
{[%clk 0:02:01.9]} 46. Bxc6 {[%clk 0:00:47.2]} 46... a1=Q {[%clk 0:02:02.8]} 47.
Bd5 {[%clk 0:00:49.1]} 47... Qc3+ {[%clk 0:02:02.7]} 48. Ke2 {[%clk 0:00:51]}
48... Bf4 {[%clk 0:02:03.4]} 49. Kf2 {[%clk 0:00:52.1]} 49... Qe3+ {[%clk
0:02:03.9]} 50. Kg2 {[%clk 0:00:53.1]} 50... Qg3+ {[%clk 0:02:04.7]} 51. Kf1
{[%clk 0:00:54.2]} 51... Be3 {[%clk 0:02:06]} 52. e5 {[%clk 0:00:53.2]} 52...
Qf2# {[%clk 0:02:06.5]} 0-1

[Event "*** Titled Tuesday Blitz"]
[Site "Chess.com"]
[Date "2020.01.07"]
[Round "2"]
[White "Valk4"]
[Black "muran29"]
[Result "1-0"]
[WhiteElo "2289"]
[BlackElo "2484"]
[TimeControl "180+2"]
[EndTime "13:24:44 PST"]
[Termination "Valk4 won by resignation"]

1. e4 {[%clk 0:03:01.4]} 1... c5 {[%clk 0:03:00.1]} 2. Nf3 {[%clk 0:03:02.3]}
2... e6 {[%clk 0:03:01.1]} 3. c4 {[%clk 0:03:02.8]} 3... Nc6 {[%clk 0:03:01.9]}
4. Nc3 {[%clk 0:03:03.9]} 4... Nge7 {[%clk 0:03:00.2]} 5. d4 {[%clk 0:03:00.4]}
5... cxd4 {[%clk 0:03:01]} 6. Nxd4 {[%clk 0:03:02.3]} 6... Nxd4 {[%clk
0:03:02.8]} 7. Qxd4 {[%clk 0:03:03.8]} 7... Nc6 {[%clk 0:03:04.7]} 8. Qd3 {[%clk
0:02:53.7]} 8... Be7 {[%clk 0:03:00.4]} 9. Be2 {[%clk 0:02:54.7]} 9... O-O
{[%clk 0:03:01]} 10. O-O {[%clk 0:02:56.2]} 10... d6 {[%clk 0:02:55.8]} 11. Be3
{[%clk 0:02:52.2]} 11... b6 {[%clk 0:02:56.6]} 12. f4 {[%clk 0:02:49.3]} 12...
Bb7 {[%clk 0:02:56.9]} 13. Bf3 {[%clk 0:02:48.6]} 13... Rc8 {[%clk 0:02:57.9]}
14. b3 {[%clk 0:02:49.5]} 14... a6 {[%clk 0:02:58.5]} 15. Rac1 {[%clk
0:02:48.3]} 15... Nb4 {[%clk 0:02:58.9]} 16. Qd2 {[%clk 0:02:43.1]} 16... Bf6
{[%clk 0:02:58.7]} 17. e5 {[%clk 0:02:03.1]} 17... dxe5 {[%clk 0:02:56.1]} 18.
Bxb7 {[%clk 0:02:02.6]} 18... exf4 {[%clk 0:02:28.3]} 19. Bxf4 {[%clk
0:01:03.6]} 19... Nd3 {[%clk 0:02:19.5]} 20. Bxc8 {[%clk 0:01:02.6]} 20... Nxc1
{[%clk 0:02:20]} 21. Qxd8 {[%clk 0:01:01.3]} 21... Rxd8 {[%clk 0:02:20]} 22.
Rxc1 {[%clk 0:00:59]} 22... Rxc8 {[%clk 0:02:21.1]} 23. Be3 {[%clk 0:00:55.9]}
23... Bd8 {[%clk 0:02:12.3]} 24. Kf2 {[%clk 0:00:56]} 24... f6 {[%clk
0:02:13.4]} 25. Rd1 {[%clk 0:00:56.4]} 25... Bc7 {[%clk 0:02:13.4]} 26. Rd7
{[%clk 0:00:56]} 26... h5 {[%clk 0:02:01]} 27. h3 {[%clk 0:00:55.2]} 27... h4
{[%clk 0:01:57.9]} 28. Na4 {[%clk 0:00:52.5]} 28... b5 {[%clk 0:01:58]} 29. Nc5
{[%clk 0:00:49.6]} 29... bxc4 {[%clk 0:01:46.3]} 30. bxc4 {[%clk 0:00:51.5]}
30... a5 {[%clk 0:01:47.8]} 31. Kf3 {[%clk 0:00:42.6]} 31... Be5 {[%clk
0:01:38.2]} 32. Ra7 {[%clk 0:00:34.8]} 32... g5 {[%clk 0:01:26]} 33. Rxa5 {[%clk
0:00:33.3]} 33... Rc6 {[%clk 0:01:24.9]} 34. Rb5 {[%clk 0:00:32.4]} 34... Kf7
{[%clk 0:01:25.2]} 35. a4 {[%clk 0:00:33.3]} 35... Kg6 {[%clk 0:01:26.1]} 36. a5
{[%clk 0:00:34.6]} 36... f5 {[%clk 0:01:27.3]} 37. a6 {[%clk 0:00:35.7]} 37...
Kh5 {[%clk 0:01:26.8]} 38. a7 {[%clk 0:00:33.4]} 38... g4+ {[%clk 0:01:28]} 39.
hxg4+ {[%clk 0:00:32.9]} 39... fxg4+ {[%clk 0:01:29.9]} 40. Kf2 {[%clk
0:00:33.8]} 40... Rc8 {[%clk 0:01:30.7]} 41. Nd7 {[%clk 0:00:31.7]} 41... g3+
{[%clk 0:01:27]} 42. Kf3 {[%clk 0:00:32.5]} 1-0

[Event "*** Titled Tuesday Blitz"]
[Site "Chess.com"]
[Date "2020.01.07"]
[Round "2"]
[White "chessdude"]
[Black "BilodeauA"]
[Result "0-1"]
[WhiteElo "2545"]
[BlackElo "2797"]
[TimeControl "180+2"]
[EndTime "13:24:55 PST"]
[Termination "BilodeauA won by resignation"]

1. Nf3 {[%clk 0:03:01.9]} 1... d5 {[%clk 0:02:59.7]} 2. d4 {[%clk 0:03:01.3]}
2... Nf6 {[%clk 0:03:00.5]} 3. c4 {[%clk 0:03:02.5]} 3... dxc4 {[%clk
0:03:01.6]} 4. e3 {[%clk 0:03:03.2]} 4... Bg4 {[%clk 0:02:59.5]} 5. Bxc4 {[%clk
0:03:03.7]} 5... e6 {[%clk 0:03:01.1]} 6. h3 {[%clk 0:03:02.9]} 6... Bh5 {[%clk
0:03:02.1]} 7. Nc3 {[%clk 0:03:04.2]} 7... a6 {[%clk 0:03:03.1]} 8. g4 {[%clk
0:03:02.7]} 8... Bg6 {[%clk 0:03:04.4]} 9. Ne5 {[%clk 0:03:04.3]} 9... Nbd7
{[%clk 0:03:06.1]} 10. Nxg6 {[%clk 0:03:05.3]} 10... hxg6 {[%clk 0:03:08]} 11.
Bf1 {[%clk 0:03:06.8]} 11... c6 {[%clk 0:03:09.1]} 12. Bg2 {[%clk 0:03:08]}
12... Bd6 {[%clk 0:03:10.6]} 13. Qe2 {[%clk 0:03:03.7]} 13... Qb6 {[%clk
0:03:10.6]} 14. g5 {[%clk 0:02:47.8]} 14... Nd5 {[%clk 0:03:10.9]} 15. Ne4
{[%clk 0:02:47.9]} 15... Be7 {[%clk 0:03:04.8]} 16. a3 {[%clk 0:02:42.7]} 16...
a5 {[%clk 0:02:59.9]} 17. h4 {[%clk 0:02:42.5]} 17... a4 {[%clk 0:02:59.6]} 18.
Qc2 {[%clk 0:02:42]} 18... e5 {[%clk 0:02:53.6]} 19. Bd2 {[%clk 0:02:28.6]}
19... exd4 {[%clk 0:02:24.2]} 20. exd4 {[%clk 0:02:29.8]} 20... Qxd4 {[%clk
0:02:25.7]} 21. O-O-O {[%clk 0:02:30.8]} 21... Qb6 {[%clk 0:02:25.4]} 22. Rhe1
{[%clk 0:02:25.5]} 22... O-O {[%clk 0:02:23.9]} 23. Nc3 {[%clk 0:02:01.5]} 23...
Bc5 {[%clk 0:02:22.6]} 24. Nxa4 {[%clk 0:01:56.4]} 24... Qb5 {[%clk 0:02:12.1]}
25. Nc3 {[%clk 0:01:51.4]} 25... Nxc3 {[%clk 0:02:13]} 26. Bxc3 {[%clk
0:01:51.2]} 26... Nb6 {[%clk 0:02:14.7]} 27. Bf1 {[%clk 0:01:41.6]} 27... Qa4
{[%clk 0:02:14.4]} 28. Qxa4 {[%clk 0:01:28.7]} 28... Nxa4 {[%clk 0:02:16.3]} 29.
Bd4 {[%clk 0:01:29.2]} 29... Rfd8 {[%clk 0:02:17]} 30. Bxc5 {[%clk 0:01:17.6]}
30... Nxc5 {[%clk 0:02:18.9]} 31. Kc2 {[%clk 0:01:18.7]} 31... Kf8 {[%clk
0:02:19.2]} 32. Bc4 {[%clk 0:01:10.2]} 32... b5 {[%clk 0:02:13.1]} 33. Bf1
{[%clk 0:01:06.5]} 33... Ne6 {[%clk 0:02:12.3]} 34. Bg2 {[%clk 0:01:03.9]} 34...
Rxd1 {[%clk 0:02:12.3]} 35. Rxd1 {[%clk 0:01:04]} 35... Ra4 {[%clk 0:02:14]} 36.
b4 {[%clk 0:00:57.2]} 36... c5 {[%clk 0:01:50.4]} 37. bxc5 {[%clk 0:00:42.1]}
37... Nxc5 {[%clk 0:01:52.3]} 38. Kb2 {[%clk 0:00:43.2]} 38... b4 {[%clk
0:01:48.6]} 39. axb4 {[%clk 0:00:34.2]} 39... Rxb4+ {[%clk 0:01:50.5]} 40. Kc3
{[%clk 0:00:35.9]} 40... Rxh4 {[%clk 0:01:50.1]} 41. Rd5 {[%clk 0:00:37.5]}
41... Ne6 {[%clk 0:01:49]} 42. Bf1 {[%clk 0:00:24.6]} 42... Rf4 {[%clk
0:01:48.1]} 43. Kd2 {[%clk 0:00:22.6]} 43... Rxf2+ {[%clk 0:01:48.7]} 44. Ke3
{[%clk 0:00:24.2]} 44... Rxf1 {[%clk 0:01:48.3]} 0-1

[Event "*** Titled Tuesday Blitz"]
[Site "Chess.com"]
[Date "2020.01.07"]
[Round "2"]
[White "SlavenPastar"]
[Black "albano87"]
[Result "1-0"]
[WhiteElo "2516"]
[BlackElo "2060"]
[TimeControl "180+2"]
[EndTime "13:25:01 PST"]
[Termination "SlavenPastar won by resignation"]

1. d4 {[%clk 0:03:01.9]} 1... d5 {[%clk 0:03:00]} 2. c4 {[%clk 0:03:03]} 2... e6
{[%clk 0:03:00.8]} 3. Nc3 {[%clk 0:03:03.8]} 3... Nf6 {[%clk 0:03:01.3]} 4. Bg5
{[%clk 0:03:03.4]} 4... Be7 {[%clk 0:03:01.8]} 5. cxd5 {[%clk 0:03:03]} 5...
exd5 {[%clk 0:03:02.2]} 6. e3 {[%clk 0:03:03]} 6... Nbd7 {[%clk 0:03:01.6]} 7.
Bd3 {[%clk 0:03:03.9]} 7... O-O {[%clk 0:03:01]} 8. Qc2 {[%clk 0:03:05.2]} 8...
b6 {[%clk 0:03:00.7]} 9. Nge2 {[%clk 0:03:02.6]} 9... Bb7 {[%clk 0:03:00.6]} 10.
O-O {[%clk 0:03:03.7]} 10... c5 {[%clk 0:03:00.5]} 11. Ng3 {[%clk 0:02:56.6]}
11... g6 {[%clk 0:02:56.9]} 12. Rad1 {[%clk 0:02:50.4]} 12... a6 {[%clk
0:02:48.6]} 13. f3 {[%clk 0:02:39.4]} 13... c4 {[%clk 0:02:48.5]} 14. Be2 {[%clk
0:02:40]} 14... b5 {[%clk 0:02:49.7]} 15. a3 {[%clk 0:02:40.7]} 15... Re8 {[%clk
0:02:47]} 16. e4 {[%clk 0:02:40.7]} 16... dxe4 {[%clk 0:02:47.5]} 17. fxe4
{[%clk 0:02:42.6]} 17... Nxe4 {[%clk 0:02:39.5]} 18. Bxe7 {[%clk 0:02:27.9]}
18... Qxe7 {[%clk 0:02:38.5]} 19. Ncxe4 {[%clk 0:02:25.2]} 19... Bxe4 {[%clk
0:02:38.5]} 20. Nxe4 {[%clk 0:02:22.7]} 20... Qxe4 {[%clk 0:02:38.8]} 21. Qxe4
{[%clk 0:02:23.2]} 21... Rxe4 {[%clk 0:02:40.5]} 22. Bf3 {[%clk 0:02:23.7]}
22... Nf6 {[%clk 0:02:31.2]} 23. g4 {[%clk 0:02:07.8]} 23... Rae8 {[%clk
0:02:22.7]} 24. Bxe4 {[%clk 0:02:04.4]} 24... Nxe4 {[%clk 0:02:22.1]} 25. d5
{[%clk 0:02:03.3]} 25... Rd8 {[%clk 0:02:20.5]} 26. d6 {[%clk 0:01:52.6]} 26...
Rxd6 {[%clk 0:02:10]} 27. Rxd6 {[%clk 0:01:49.6]} 27... Nxd6 {[%clk 0:02:10.4]}
28. Rf6 {[%clk 0:01:51.1]} 28... Ne4 {[%clk 0:01:56.1]} 29. Rxa6 {[%clk
0:01:48]} 29... Kg7 {[%clk 0:01:31.6]} 30. Kg2 {[%clk 0:01:41.9]} 30... h5
{[%clk 0:01:16.8]} 31. gxh5 {[%clk 0:01:39.2]} 31... gxh5 {[%clk 0:01:18.2]} 32.
Kf3 {[%clk 0:01:22]} 32... c3 {[%clk 0:01:09]} 33. bxc3 {[%clk 0:01:20.1]} 33...
Nxc3 {[%clk 0:01:10.3]} 34. Ke3 {[%clk 0:01:05.4]} 34... b4 {[%clk 0:01:00.9]}
35. Kd3 {[%clk 0:00:48.5]} 35... Nd5 {[%clk 0:00:58.8]} 36. Kc4 {[%clk
0:00:34.2]} 36... Nc7 {[%clk 0:00:51.5]} 37. Ra7 {[%clk 0:00:30]} 1-0

[Event "*** Titled Tuesday Blitz"]
[Site "Chess.com"]
[Date "2020.01.07"]
[Round "2"]
[White "Shahinyan_ChessMood"]
[Black "ExcitingTrap"]
[Result "1-0"]
[WhiteElo "2622"]
[BlackElo "2323"]
[TimeControl "180+2"]
[EndTime "13:25:02 PST"]
[Termination "Shahinyan_ChessMood won by checkmate"]

1. e4 {[%clk 0:02:58]} 1... e6 {[%clk 0:02:59.9]} 2. d3 {[%clk 0:02:57.5]} 2...
c5 {[%clk 0:02:55.9]} 3. Nd2 {[%clk 0:02:59.3]} 3... g6 {[%clk 0:02:56.3]} 4. g3
{[%clk 0:03:01.2]} 4... Bg7 {[%clk 0:02:57.7]} 5. Bg2 {[%clk 0:03:02.1]} 5...
Ne7 {[%clk 0:02:57.4]} 6. h4 {[%clk 0:03:04]} 6... h5 {[%clk 0:02:54.8]} 7. Ngf3
{[%clk 0:03:04.5]} 7... O-O {[%clk 0:02:55]} 8. O-O {[%clk 0:03:04.3]} 8... Nbc6
{[%clk 0:02:56.6]} 9. c3 {[%clk 0:02:43.1]} 9... d6 {[%clk 0:02:53]} 10. Qe2
{[%clk 0:02:42.7]} 10... a6 {[%clk 0:02:46.2]} 11. Re1 {[%clk 0:02:29.4]} 11...
Rb8 {[%clk 0:02:39.3]} 12. Nf1 {[%clk 0:02:30.1]} 12... b5 {[%clk 0:02:36.9]}
13. a3 {[%clk 0:02:30]} 13... b4 {[%clk 0:02:30.4]} 14. axb4 {[%clk 0:02:30.2]}
14... cxb4 {[%clk 0:02:32.3]} 15. c4 {[%clk 0:02:30.9]} 15... a5 {[%clk
0:02:23.8]} 16. Be3 {[%clk 0:02:24.4]} 16... d5 {[%clk 0:02:19.5]} 17. exd5
{[%clk 0:02:22.2]} 17... exd5 {[%clk 0:02:21.4]} 18. Bc5 {[%clk 0:02:22.8]}
18... Re8 {[%clk 0:02:16]} 19. Ng5 {[%clk 0:02:07]} 19... Bg4 {[%clk 0:02:04.1]}
20. Qd2 {[%clk 0:01:51.2]} 20... dxc4 {[%clk 0:01:57.9]} 21. Qf4 {[%clk
0:01:41]} 21... Qxd3 {[%clk 0:01:10.7]} 22. Qxf7+ {[%clk 0:01:38.5]} 22... Kh8
{[%clk 0:01:10.3]} 23. Bxe7 {[%clk 0:01:33.7]} 23... Nxe7 {[%clk 0:00:53.9]} 24.
Rxe7 {[%clk 0:01:33.3]} 24... Rxe7 {[%clk 0:00:54.8]} 25. Qxe7 {[%clk
0:01:33.9]} 25... Rf8 {[%clk 0:00:54.6]} 26. Rxa5 {[%clk 0:01:21.3]} 26... Qd4
{[%clk 0:00:42.7]} 27. Ne3 {[%clk 0:01:15.8]} 27... Qxb2 {[%clk 0:00:40.7]} 28.
Nf7+ {[%clk 0:01:14.2]} 28... Kg8 {[%clk 0:00:35.7]} 29. Ra7 {[%clk 0:01:14.5]}
29... b3 {[%clk 0:00:11.8]} 30. Bd5 {[%clk 0:01:06.4]} 30... Kh7 {[%clk
0:00:11.2]} 31. Qxf8 {[%clk 0:00:57.5]} 31... Bxf8 {[%clk 0:00:06.3]} 32. Ng5+
{[%clk 0:00:57.8]} 32... Kh6 {[%clk 0:00:05.3]} 33. Rh7# {[%clk 0:00:59.7]} 1-0

[Event "*** Titled Tuesday Blitz"]
[Site "Chess.com"]
[Date "2020.01.07"]
[Round "2"]
[White "otrov-11"]
[Black "BjarkeSahl"]
[Result "1-0"]
[WhiteElo "2433"]
[BlackElo "2135"]
[TimeControl "180+2"]
[EndTime "13:25:03 PST"]
[Termination "otrov-11 won by resignation"]

1. d4 {[%clk 0:03:01.9]} 1... f5 {[%clk 0:03:00.8]} 2. e4 {[%clk 0:03:02.3]}
2... fxe4 {[%clk 0:03:01.1]} 3. Nc3 {[%clk 0:03:03.4]} 3... Nf6 {[%clk
0:03:02.2]} 4. Bg5 {[%clk 0:03:04.2]} 4... c6 {[%clk 0:02:51]} 5. f3 {[%clk
0:03:03]} 5... d5 {[%clk 0:02:47.4]} 6. fxe4 {[%clk 0:02:57]} 6... Nxe4 {[%clk
0:02:45.2]} 7. Nxe4 {[%clk 0:02:49.1]} 7... dxe4 {[%clk 0:02:46.1]} 8. Bc4
{[%clk 0:02:47.3]} 8... Qd6 {[%clk 0:01:46.6]} 9. c3 {[%clk 0:02:19.8]} 9... Be6
{[%clk 0:01:46.4]} 10. Bxe6 {[%clk 0:02:04.5]} 10... Qxe6 {[%clk 0:01:46.8]} 11.
Ne2 {[%clk 0:02:06.4]} 11... Nd7 {[%clk 0:01:38.7]} 12. O-O {[%clk 0:02:03]}
12... O-O-O {[%clk 0:01:23.7]} 13. Re1 {[%clk 0:01:50.5]} 13... h6 {[%clk
0:01:18.1]} 14. Be3 {[%clk 0:01:08.6]} 14... g5 {[%clk 0:01:08.3]} 15. Qa4
{[%clk 0:01:09.8]} 15... a6 {[%clk 0:01:03]} 16. Rad1 {[%clk 0:01:09.7]} 16...
Qg6 {[%clk 0:00:40.9]} 17. d5 {[%clk 0:01:05.9]} 17... Bg7 {[%clk 0:00:40.9]}
18. Qa3 {[%clk 0:00:54.1]} 18... Be5 {[%clk 0:00:22.1]} 19. b4 {[%clk
0:00:48.8]} 19... Qd6 {[%clk 0:00:18.8]} 20. dxc6 {[%clk 0:00:43.1]} 20... Qxc6
{[%clk 0:00:17.9]} 21. c4 {[%clk 0:00:41]} 21... Nf6 {[%clk 0:00:09.5]} 22. b5
{[%clk 0:00:40.7]} 22... Qe6 {[%clk 0:00:09.5]} 23. c5 {[%clk 0:00:33.6]} 23...
axb5 {[%clk 0:00:07.7]} 24. c6 {[%clk 0:00:26.4]} 24... Rxd1 {[%clk 0:00:05.8]}
25. cxb7+ {[%clk 0:00:25.2]} 25... Kc7 {[%clk 0:00:05.6]} 26. Qa5+ {[%clk
0:00:23.8]} 26... Kxb7 {[%clk 0:00:06.2]} 27. Qa7+ {[%clk 0:00:24.2]} 27... Kc8
{[%clk 0:00:06.3]} 28. Rxd1 {[%clk 0:00:24]} 28... b4 {[%clk 0:00:05.1]} 29. Bb6
{[%clk 0:00:22.6]} 1-0